Workbook

Sheet Tabelle1
B2: Äquivalenzziffernkalkulation
B3: (Vollkostenrechnung in Betrieben mit Sortenfertigung)
E5: Äquivalenz- | F5: Umrechnungs- | G5: Selbstkosten | H5: Selbstkosten
B6: Produkt | D6: Mengen | E6: ziffern | F6: zahlen | G6: je Einheit | H6: je Produkt
B7: A | D7: 15000 | E7: 0.9 | F7: =D7*E7 -> 13500 | G7: =E7*H13 -> 21.03186646 | H7: =D7*G7 -> 315477.997
B8: B | D8: 20000 | E8: 0.8 | F8: =D8*E8 -> 16000 | G8: =E8*H13 -> 18.69499241 | H8: =D8*G8 -> 373899.8483
B9: C | D9: 12500 | E9: 1 | F9: =D9*E9 -> 12500 | G9: =E9*H13 -> 23.36874052 | H9: =D9*G9 -> 292109.2564
B10: D | D10: 8500 | E10: 1.4 | F10: =D10*E10 -> 11900 | G10: =E10*H13 -> 32.71623672 | H10: =D10*G10 -> 278088.0121
B11: E | D11: 10000 | E11: 1.2 | F11: =D11*E11 -> 12000 | G11: =E11*H13 -> 28.04248862 | H11: =D11*G11 -> 280424.8862
B12: Summen | F12: =SUM(F7:F11) -> 65900 | H12: 1540000
B13: Selbstkosten je Einheit Umrechnungszahlen | H13: =H12/F12 -> 23.36874052
C15: Preis je | D15: Umsatz-
B16: Produkt | C16: Einheit | D16: erlöse
B17: =B7 -> A | C17: 25 | D17: =C17*D7 -> 375000
B18: =B8 -> B | C18: 20 | D18: =C18*D8 -> 400000
B19: =B9 -> C | C19: 25 | D19: =C19*D9 -> 312500
B20: =B10 -> D | C20: 40 | D20: =C20*D10 -> 340000
B21: =B11 -> E | C21: 30 | D21: =C21*D11 -> 300000
B22: Summe | D22: =SUM(D17:D21) -> 1727500
B23: Selbstkosten | D23: =H12 -> 1540000
B24: Betriebsergebnis | D24: =D22-D23 -> 187500
D25: =IF(D24<0,"Verlust!","Gewinn") -> Gewinn

Sheet Tabelle2

Sheet Tabelle3
